Cogmind - Beta 10.2 @@@ ROGUE MODE // 2021.05.18 @ 16:20:17 Player: ChromeKnight Result: Destroyed by D-53 Grenadier with Mini Grenade Launcher Performance ------------- Evolutions (0) 0 Regions Visited (2) 400 Robots Destroyed (8) 40 Value Destroyed (184) 184 Prototype IDs (0) 0 Alien Tech Used (0) 0 Bonus (0) 0 TOTAL SCORE: 624 Bonus ------- None Cogmind --------- Core Integrity 0/250 Matter 300/300 Energy 100/100 System Corruption 0% Temperature Cool (0) Movement Core (300) Ox5 Location -10/Mines Parts ------- > --- POWER (1) -------- (None) > --- PROPULSION (2) --- (None) > --- UTILITY (2) ------ Cooling System Large Storage Unit > --- WEAPON (2) ------- (None) > --- INVENTORY (10) --- Ion Engine Aluminum Leg Aluminum Leg Aluminum Leg Heat Sink Cooling System Cooling System Cooling System Utility Shielding Peak State ------------ > --- POWER ------------ Light Ion Engine > --- PROPULSION ------- Aluminum Leg Aluminum Leg > --- UTILITY ---------- Cooling System Large Storage Unit > --- WEAPON ----------- Beam Rifle Beam Rifle > --- INVENTORY -------- Cooling System Cooling System Cooling System Large Storage Unit Beam Rifle Beam Rifle [Rating: 11] Favorites ----------- Power Light Ion Engine Engine Light Ion Engine Propulsion Aluminum Leg Leg Aluminum Leg Utility Large Storage Unit Device Cooling System Storage Large Storage Unit Weapon Beam Rifle Energy Gun Beam Rifle Ballistic Gun Assault Rifle Build | -11 -10 -10 ------- Run | Scr Mat Min Slots Evolved . | . . . Power . | . . . Propulsion . | . . . Utility . | . . . Weapon . | . . . Parts Attached 15 | 6 5 4 Power 2 | 1 1 . Engine 2 | 1 1 . Core . | . . . Reactor . | . . . Propulsion 3 | 2 . 1 Treads . | . . . Leg 3 | 2 . 1 Wheel . | . . . Hover . | . . . Flight . | . . . Utility 3 | 1 2 . Device 1 | . 1 . Storage 2 | 1 1 . Processor . | . . . Hackware . | . . . Protection . | . . . Artifact . | . . . Weapon 7 | 2 2 3 Energy Gun 6 | 1 2 3 Energy Cannon . | . . . Ballistic Gun 1 | 1 . . Ballistic Cannon . | . . . Launcher . | . . . Special Weapon . | . . . Impact Weapon . | . . . Slashing Weapon . | . . . Piercing Weapon . | . . . Special Melee Weapon . | . . . Unidentified Prototypes . | . . . Parts Lost 9 | . 1 8 Power 1 | . . 1 Propulsion 3 | . . 3 Utility . | . . . Weapon 5 | . 1 4 Highest Loss Streak 5 | . 1 5 Average Slot Usage (%) 96 | . 97 93 Engine 13 | . 14 13 Leg 27 | . 28 27 Device 12 | . 12 14 Storage 14 | . 14 14 Energy Gun 24 | . 26 22 Naked Turns . | . . . Heaviest Build 27 | 11 27 27 Greatest Support 20 | 20 20 20 Greatest Overweight (x) 1 | 1 1 1 Average Overweight (x) . | . . . Largest Inventory Capacity 12 | 6 12 10 Average Capacity 9 | 5 9 10 Most Carried 10 | . 10 9 Average Carried 7 | . 7 8 Final Capacity 10 | 6 10 10 Final Carried 10 | . 10 9 Class Distribution -------------------- 100% | Mutant Dominant Class ---------------- Mutant | -10/Materials Mutant | -10/Mines Resources | -11 -10 -10 ----------- Run | Scr Mat Min Matter Collected 341 | 237 79 25 Remotely . | . . . Salvage Created 378 | 23 270 85 Parts 11 | 1 10 . Haulers Intercepted 1 | . 1 . Recyclers Shooed 1 | 1 . . Parts Field Recycled . | . . . Retrieved Matter . | . . . Parts Self-Destructed . | . . . Prevented . | . . . Kills | -11 -10 -10 ------- Run | Scr Mat Min Combat Hostiles Destroyed 9 | . 3 6 Guns 9 | . 3 6 Classes Destroyed 7 | 1 4 2 Worker 1 | . 1 . Tunneler 1 | 1 . . Hauler 1 | . 1 . Recycler 1 | . 1 . Grunt 3 | . 3 . Demolisher 1 | . . 1 Assembled 5 | . . 5 Best Kill Streak 4 | 1 3 4 Combat Bots Only 4 | . 2 4 Max Kills in Single Turn 1 | 1 1 1 Gunslinging . | . . . Exploded . | . . . Melee . | . . . Uniques/NPCs Destroyed . | . . . Combat | -11 -10 -10 -------- Run | Scr Mat Min Damage Taken 926 | . 214 712 Core 255 | . 55 200 Absorbed by Shields . | . . . Core Remaining (%) 100 | 100 . . Volleys Fired 53 | 2 27 24 Largest 2 | 2 2 2 Hottest 121 | 60 112 121 Shots Fired 86 | 4 54 28 Gun 86 | 4 54 28 Cannon . | . . . Launcher . | . . . Special . | . . . Kinetic 2 | 2 . . Thermal 82 | . 54 28 Explosive . | . . . Electromagnetic 2 | 2 . . Robot Hit Streak 11 | 3 11 6 Robot Miss Streak 3 | 1 3 3 Penetration Max . | . . . Secondary Targets . | . . . Shots Hit Robots 51 | 3 30 18 Core Hits 23 | 1 10 12 Critical Hits . | . . . Critical Kills . | . . . Critical Parts Destroyed . | . . . Melee Attacks . | . . . Impact . | . . . Slashing . | . . . Piercing . | . . . Sneak Attacks . | . . . Combat Hostiles . | . . . Follow-up Attacks . | . . . Damage Inflicted 736 | 26 453 257 Guns 729 | 26 450 253 Cannons . | . . . Explosions . | . . . Melee . | . . . Ramming 7 | . 3 4 Kinetic 14 | 14 . . Thermal 703 | . 450 253 Explosive . | . . . Electromagnetic 12 | 12 . . Impact . | . . . Slashing . | . . . Piercing . | . . . Highest Corruption . | . . . Average Corruption . | . . . Corruption Purged . | . . . Overload Shots . | . . . Overflow Damage . | . . . Projectiles . | . . . Explosions . | . . . Melee . | . . . Knockbacks . | . . . Impact . | . . . Kinetic . | . . . Secondary . | . . . Self-Inflicted Damage 1 | . . 1 Shots . | . . . Rammed 3 | . . 3 Targets Rammed 4 | . 1 3 Kicked 1 | . 1 . Crushed . | . . . Highest Temperature 4 | . 4 . Average Temperature 3 | . 3 . Received Heat Transfer 78 | . 78 . Siege Activations . | . . . Robots Corrupted . | . . . Combat Hostiles . | . . . Parts Fried . | . . . Impact Corruptions . | . . . Robots Melted . | . . . Combat Hostiles . | . . . Parts Melted 4 | . 4 . Heat Transferred 1776 | . 1147 629 Parts Sabotaged . | . . . Parts Stolen . | . . . Parts Stripped . | . . . Power Chain Reactions . | . . . Missiles Intercepted . | . . . Alert | -11 -10 -10 ------- Run | Scr Mat Min Peak Influence 135 | 5 135 20 Initial 3 | . 3 . Average 31 | . 54 . Maximum Alert Level . | . . . Low Security (%) 100 | 100 100 100 Level 1 . | . . . Level 2 . | . . . Level 3 . | . . . Level 4 . | . . . Level 5 . | . . . High Security . | . . . Max Security . | . . . Squads Dispatched 1 | . 1 . Investigation . | . . . Extermination . | . . . Reinforcement 1 | . 1 . Assault . | . . . Garrison . | . . . Intercept . | . . . Construction Impeded . | . . . Haulers Reinforced . | . . . Stealth | -11 -10 -10 --------- Run | Scr Mat Min Distress Signals 1 | . 1 . Communications Jammed . | . . . Distress Signals . | . . . Times Spotted 20 | . 12 8 Peak Tracking Total 6 | . 5 6 Tactical Retreats . | . . . Traps | -11 -10 -10 ------- Run | Scr Mat Min Traps Triggered . | . . . Indirectly . | . . . Trap Hack Attempts . | . . . Triggered . | . . . Disarmed . | . . . Reprogrammed . | . . . Reused . | . . . Traps Extracted . | . . . Installed . | . . . Triggered . | . . . Machines | -11 -10 -10 ---------- Run | Scr Mat Min Machines Disabled 1 | . 1 . Max in Single Turn 1 | . 1 . Machines Sabotaged . | . . . Garrisons Compromised . | . . . Overloaded Fab Kills . | . . . Fab Network Shutdowns . | . . . Hacking | -11 -10 -10 --------- Run | Scr Mat Min Machines Accessed 1 | . 1 . Terminals 1 | . 1 . Fabricators . | . . . Repair Stations . | . . . Recycling Units . | . . . Scanalyzers . | . . . Garrison Access . | . . . Total Hacks 2 | . 2 . Successful 1 | . 1 . Failed 1 | . 1 . Catastrophic . | . . . Database Lockouts . | . . . Manual . | . . . Terminals 2 | . 2 . Fabricators . | . . . Repair Stations . | . . . Recycling Units . | . . . Scanalyzers . | . . . Garrison Access . | . . . Terminal Hacks 1 | . 1 . Zone Layout 1 | . 1 . Fabricator Hacks . | . . . Repair Station Hacks . | . . . Recycling Unit Hacks . | . . . Scanalyzer . | . . . Garrison Access Hacks . | . . . Unauthorized Hacks . | . . . Terminals . | . . . Fabricators . | . . . Repair Stations . | . . . Recycling Units . | . . . Scanalyzers . | . . . Garrison Access . | . . . Data Cores Recovered . | . . . Used . | . . . Hacking Detections . | . . . Full Trace Events . | . . . Feedback Events . | . . . Feedback Blocked . | . . . Robot Schematics Acquired . | . . . Robots Built . | . . . Matter . | . . . Time . | . . . Total Robot Build Rating . | . . . Part Schematics Acquired . | . . . Parts Built . | . . . Matter . | . . . Time . | . . . Total Part Build Rating . | . . . Parts Repaired . | . . . Time . | . . . Parts Recycled . | . . . Recycled Matter . | . . . Retrieved Matter . | . . . Retrieved Components . | . . . Parts Scanalyzed . | . . . Part Schematics Acquired . | . . . Parts Damaged . | . . . Bothacking | -11 -10 -10 ------------ Run | Scr Mat Min Used RIF Installer . | . . . Robots Hacked . | . . . Non-combat . | . . . Combat . | . . . Robot Hacks Applied . | . . . Relay Couplers Released . | . . . Robots Rewired . | . . . Allies Hacked . | . . . Hacks Repelled . | . . . Allies | -11 -10 -10 -------- Run | Scr Mat Min Total Allies . | . . . Largest Group . | . . . Highest-Rated Group . | . . . Highest-Rated Ally . | . . . Total Orders . | . . . Ally Attacks . | . . . Total Damage . | . . . Kills . | . . . Allies Corrupted . | . . . Allies Melted . | . . . Intel | -11 -10 -10 ------- Run | Scr Mat Min Robot Analysis Total . | . . . Derelict Logs Recovered . | . . . Drone Launches . | . . . Drone Recoveries . | . . . Exploration | -11 -10 -10 ------------- Run | Scr Mat Min Turns Passed 747 | 59 432 256 Spaces Moved 371 | 38 215 118 Core 4 | 4 . . Treads . | . . . Legs 367 | 34 215 118 Wheels . | . . . Hover . | . . . Flight . | . . . Fastest Speed 50 | 50 120 120 Average Speed 145 | 116 149 148 Slowest Speed 150 | 120 150 150 Overloaded Moves . | . . . Propulsion Burnouts . | . . . Robots Hopped . | . . . Cave-ins Triggered . | . . . Exploration Rate (%) 24 | 4 41 29 Regions Visited 2 Branch Regions 1 Pre-discovered Areas . | . . . Known Exits Taken . | . . . Unknown Exits Taken 2 | 1 1 . Scrap Searched . | . . . Spaces Dug . | . . . Terrain Destroyed . | . . . Melee . | . . . Projectile . | . . . AOE . | . . . Terrain Rammed . | . . . Walls Destroyed . | . . . Machines Disabled . | . . . Actions | -11 -10 -10 --------- Run | Scr Mat Min Total 484 | 45 274 165 Wait 21 | . 7 14 Move 369 | 37 214 118 Hop . | . . . Pick Up 15 | . 13 2 Fast Attach 11 | 6 4 1 Attach 3 | . . 3 Detach . | . . . Swap 1 | . 1 . Drop 7 | . 7 . Fire 53 | 2 27 24 Melee . | . . . Ram 2 | . . 2 Kick 2 | . 1 1 Crush . | . . . Escape Stasis . | . . . Rewire . | . . . Trap . | . . . Miscellaneous . | . . . Route ------- -11/Scrapyard -10/Materials (discovered 2 exits: [Mat] / [*Min]) -10/Mines History --------- Turn | Location | Event 16 | -11/Scrapyard | Discovered new exit (range 14) 60 | -11/Scrapyard | Entered Materials 170 | -10/Materials | Discovered new exit (range 14) 307 | -10/Materials | Build established: Mutant 335 | -10/Materials | Discovered new exit (range 12) 492 | -10/Materials | Entered Mines 572 | -10/Mines | Assembled infested the area 658 | -10/Mines | Lost 3 parts (1n2w) 723 | -10/Mines | Core integrity fell below 50% 747 | -10/Mines | Core integrity fell below 20% 748 | -10/Mines | Destroyed by D-53 Grenadier with Mini Grenade Launcher Last Messages --------------- 00663_ Acquired Aluminum Leg. 00669_ Acquired Particle Gun. 00671_ Acquired 10 matter. 00725_ Particle Gun destroyed. 00726_ The unstable cave ceiling collapses. 00726_ D-53 Grenadier destroyed. 00730_ The unstable cave ceiling collapses. 00733_ Beam Rifle destroyed. 00733_ Lgt. Ion Engine destroyed. 00739_ The unstable cave ceiling collapses. 00739_ K-01 Serf collects debris. 00740_ Aluminum Leg destroyed. 00740_ Slammed into D-53 Grenadier. 00742_ Aluminum Leg destroyed. 00742_ Slammed into D-53 Grenadier. 00742_ K-01 Serf collects debris. 00744_ The unstable cave ceiling collapses. 00745_ Slammed into D-53 Grenadier. 00746_ K-01 Serf collects debris. 00747_ The unstable cave ceiling collapses. Map ----- +----------------------------------------------------+ | | | | | ?????????????????????????????????????????????????? | | ?????????????????????????????????????????????????? | | ?????????????????????????????????????#####???????? | | ????????????????????????????????????? #???????? | | ???????????????????????????####??????""" #???????? | | ???????????????????????????# ##????""" #???????? | | ????????????????????????????# ##???""" #???????? | | ?????????????? ???????????# #??? ????????? | | ?????????????? ???????????# #???# #????????? | | ????????????? ???????????# ##??# #????????? | | ?????????????# ??????????# #### #????????? | | ?????????????# ??????????# #????????? | | ?????????????# ??######## #### #????????? | | ??????????????# ### ## #??# #????????? | | ??????????????# # # = ##?? ???????? | | ??????????????# # # !%##??? ??????? | | ???????????????# # ##???# ?????? | | ??????????????????# ###?## ????? | | ??????????????????## ##?? ???? | | ?????#########?????## #?? ##??? | | ?????# #??????# ## #???? | | ?????# #??###?# #?# # #???? | | ?????# """ #?## ## #?? ## ???? | | ?????# """ #?# # @d #?? ###?? ??? | | ?????# """ #?# ##??# ##???? ???? | | ?????# #?## %% #????# ##??????????? | | ?????#### ####??# ## # #?????###???????????? | | ????????# #????# #?#### ###???????????????????? | | ????????# #????# #####?# ##????????????????????? | | ????????# #????# ### ### k #????????????????????? | | ????????# #????#### ##????????????????????? | | ????????# #??##### #?????????????????????? | | ????????# #??# ## ???????????????? | | ????????# #??# ######### ??????????????? | | ????????# #### #???????## k ###### ?????????????? | | ????????# #????????## ##???????????????????? | | ????????#### ###?????????####????????????????????? | | ???????????# #???????????????????????????????????? | | ???????????# ######??????????????????????????????? | | ??????????## #??????????????????????????????? | | ?????????## #??????????????????????????????? | | ???####### #??????????????????????????????? | | ???# #??????????????????????????????? | | ??# ##??????????????????????????????? | | ??# """ ## ##???????????????????????????????? | | ?# """ ######????????????????????????????????? | | ?? """ ##?????????????????????????????????????? | | ??# #??????????????????????????????????????? | +----------------------------------------------------+ Best States ------------- Heat Dissipation 47 Energy Generation 10 Energy Capacity 125 Matter Stores 300 Matter Capacity 300 Sight Range 16 Terrain Scan Density 10 Evasion (%) 40 Item Schematics ----------------- None Robot Schematics ------------------ None Fabricated ------------ Nothing Alien Tech Used ----------------- None Achievements -------------- None Challenges ------------ None Game ------ Seed MassStorageInterpreter Manual? 0 Play Time 00:05:19 Cumulative 213.3 hours Start 2021.05.18 @ 16:16:25 End 2021.05.18 @ 16:20:17 Sessions 1 Manual Loads 0 Difficulty Rogue Special Mode None Game No. 412 Rogue 257 Adventurer 148 Explorer 7 Win Type - Total 6 Types 6/0/0/0/0/0/0/0/0 Lore% 74 Gallery% 85 Achievement% 62 Wizard Run 0 Options --------- ASCII 0 Keyboard 0 Movement Numpad Keybinds 0 Fullscreen 1 Font 14/X11 Map View 84x54 Tactical HUD 1 Map Filters NONE Filters NONE Steam 1 RUN: 638524ac-c628-45aa-b180-e6abac0674f6